bitfinex/quotes_ETHUSD_20240717
["timestamp","ask_amount","ask_price","bid_price","bid_amount"]
[1721236060841,2.93864,3403.0,3402.2,0.52973846]
[1721236061010,2.98680113,3402.9,3402.2,0.52973846]
[1721236061934,0.04813113,3402.9,3402.2,0.52973846]
[1721236062131,2.98680113,3402.9,3402.2,0.52973846]
[1721236062339,2.93867,3402.9,3402.0,2.93937]
[1721236062490,0.04829515,3402.8,3402.0,2.93937]
[1721236063300,0.04829515,3402.8,3402.1,2.93934]
[1721236063618,0.04829515,3402.8,3402.1,2.9981201]
[1721236063821,0.04829515,3402.8,3402.2,0.82367901]
[1721236064009,2.93849,3403.1,3402.2,0.82367901]
[1721236064228,0.0482353,3402.7,3402.2,0.82367901]
[1721236064430,2.93849,3403.1,3402.2,0.82367901]
[1721236064820,2.93832,3403.3,3402.3,5.27676]
[1721236065019,0.0482931,3403.0,3402.4,0.9491439]
[1721236065254,0.04831887,3403.2,3402.4,0.9491439]
[1721236065417,0.04840744,3402.9,3402.5,2.93899]
[1721236065622,2.93818,3403.5,3402.5,2.99776312]
[1721236065815,2.93801,3403.7,3402.8,2.93867]
[1721236066076,0.04858324,3403.4,3402.8,3.232537]
[1721236066220,2.93801,3403.7,3402.9,2.99742744]
[1721236066419,0.04858127,3403.3,3402.9,2.93866]
[1721236066620,2.93801,3403.7,3402.9,2.93866]
[1721236066845,0.04856375,3403.2,3403.0,2.93851]
[1721236067040,2.93783,3403.9,3403.0,2.93851]
[1721236067041,2.93783,3403.9,3403.1,5.26679]
[1721236067322,0.04874592,3403.8,3403.2,2.9384]
[1721236067516,0.04874592,3403.8,3403.2,2.99716202]
[1721236067764,2.93748,3404.3,3403.1,5.26679]
[1721236067765,2.93748,3404.3,3403.3,2.9383]
[1721236067931,2.93748,3404.3,3403.1,2.3283]
[1721236067932,0.04882172,3403.7,3403.4,2.93818]
[1721236068136,2.93748,3404.3,3403.4,2.93818]
[1721236068350,0.0488042,3403.6,3403.4,2.93818]
[1721236068545,2.93748,3404.3,3403.1,5.26676]
[1721236068747,2.93764,3404.1,3403.1,5.26676]
[1721236068966,2.93764,3404.1,3403.2,2.9384]
[1721236069169,2.98670256,3404.0,3403.2,2.9384]
[1721236069371,0.04892256,3404.0,3403.2,3.758936]
[1721236070274,2.93747,3404.3,3403.4,2.93822]
[1721236070454,0.04881287,3404.2,3403.4,2.93822]
[1721236070972,0.04881287,3404.2,3403.2,3.758936]
[1721236071141,0.04881287,3404.2,3403.4,2.93823]
[1721236071340,2.98636287,3404.2,3403.4,3.8407766]
[1721236071543,0.04881287,3404.2,3403.5,0.05875631]
[1721236071756,0.04881287,3404.2,3403.5,2.93815]
[1721236071960,7.37,3404.8,3403.4,0.9025466]
[1721236071961,2.93752,3404.3,3403.4,3.8407766]
[1721236072259,2.93779,3404.0,3403.2,2.93839]
[1721236072463,2.98634348,3404.2,3403.3,2.93828]
[1721236072640,2.93764,3404.1,3403.3,2.93828]
[1721236072969,2.93764,3404.1,3403.1,5.7193]
[1721236073171,2.93715,3404.7,3403.1,5.7193]
[1721236073172,2.93805,3403.7,3403.1,2.3283]
[1721236073386,2.93832,3403.3,3402.6,2.4179]
[1721236073539,2.93848,3403.2,3402.6,2.4179]
[1721236073737,2.98728796,3403.2,3402.6,2.4179]
[1721236074345,2.93851,3403.1,3402.6,2.4179]
[1721236074838,0.04879609,3403.0,3402.6,2.4179]
[1721236075038,2.93818,3403.5,3402.6,5.98742339]
[1721236075239,0.04870684,3403.4,3402.7,2.93882]
[1721236075581,0.04870684,3403.4,3402.6,5.98742339]
[1721236075943,0.04870684,3403.4,3402.7,2.93883]
[1721236076353,2.98697684,3403.4,3402.6,3.04851339]
[1721236076649,2.98697684,3403.4,3402.6,5.98743339]
[1721236076866,2.98697684,3403.4,3402.7,2.93883]
[1721236077043,2.98697684,3403.4,3402.6,3.04851339]
[1721236077238,2.98697684,3403.4,3402.6,5.98743339]
[1721236077660,2.98697684,3403.4,3402.7,2.93884]
[1721236077873,2.98697684,3403.4,3402.7,3.83146734]
[1721236079385,0.04870684,3403.4,3402.7,3.83146734]
[1721236079691,2.93807,3403.6,3402.7,3.83139734]
[1721236079891,2.9868231,3403.5,3402.7,3.83139734]
[1721236080080,0.0486731,3403.5,3403.0,2.93852]
[1721236080387,2.93793,3403.8,3403.1,2.93848]
[1721236080563,0.04857649,3403.4,3402.8,2.4166]
[1721236080767,7.37,3404.1,3402.8,2.4166]
[1721236080768,2.93839,3403.3,3402.8,2.4166]
[1721236081077,2.98701057,3403.3,3402.8,2.4166]
[1721236081460,0.04862057,3403.3,3402.9,0.24166]
[1721236081665,0.04862057,3403.3,3402.9,3.18031]
[1721236081964,0.04687425,3403.2,3403.1,6.32941]
[1721236082174,0.04687425,3403.2,3403.1,9.2679]
[1721236082356,2.93765,3404.1,3403.3,2.93826]
[1721236082555,2.93765,3404.1,3403.4,0.926767]
[1721236082756,0.04539834,3404.0,3403.4,0.926767]
[1721236084068,2.98312834,3404.0,3403.4,0.926767]
[1721236084319,2.98312834,3404.0,3402.9,3.18025]
[1721236084320,2.93787,3403.9,3402.9,3.18025]
[1721236084482,0.04543686,3403.8,3403.1,2.93848]
[1721236085510,2.93779,3404.0,3403.1,2.93848]
[1721236085724,0.04549147,3403.9,3403.1,2.93848]
[1721236085879,2.98330147,3403.9,3403.1,2.93848]
[1721236086225,2.93815,3403.5,3402.8,2.4166]
[1721236086512,0.04540453,3403.4,3402.8,4.029255]
[1721236086675,0.04540453,3403.4,3402.5,7.38]
[1721236086676,2.98365453,3403.4,3402.5,2.93898]
[1721236086882,2.98365453,3403.4,3402.3,2.3285]
[1721236086883,2.93834,3403.3,3402.3,5.26761]
[1721236087089,0.04533233,3403.2,3402.4,2.93909]
[1721236087319,0.04533233,3403.2,3402.5,0.82067]
[1721236087525,2.9385,3403.1,3402.3,2.3285]
[1721236087690,0.04524184,3403.0,3402.3,2.3285]
[1721236087890,2.98382184,3403.0,3402.3,2.3285]
[1721236088087,2.93892,3402.7,3401.7,10.31968]
[1721236088305,0.04524184,3403.0,3401.5,11.58077]
[1721236088306,2.93918,3402.4,3401.5,11.58077]
[1721236088507,0.04501329,3402.3,3401.6,1.158077]
[1721236089089,2.93913,3402.4,3401.6,2.93975]
[1721236089316,0.04488006,3402.3,3401.6,2.93975]
[1721236089518,0.04488006,3402.3,3401.7,2.93969]
[1721236089827,3.54564063,3402.8,3401.8,2.93956]
[1721236089828,2.93878,3402.8,3401.8,2.93956]
[1721236090003,0.04486849,3402.2,3401.8,2.93956]
[1721236090200,2.93898,3402.6,3401.9,0.587931]
[1721236090405,0.04485095,3402.1,3401.9,0.587931]
[1721236090626,2.93898,3402.6,3401.9,0.587931]
[1721236091226,0.0449211,3402.5,3401.9,0.587931]
[1721236092132,2.93917,3402.4,3401.5,5.7011]
[1721236092426,2.93917,3402.4,3400.6,5.09016645]
[1721236092427,2.93947,3402.0,3401.2,2.94012]
[1721236092792,2.93947,3402.0,3401.1,5.27092]
[1721236092793,2.98430212,3401.9,3401.1,5.27092]
[1721236092988,2.93967,3401.8,3401.2,1.160228]
[1721236093434,0.04468589,3401.7,3401.2,1.160228]
[1721236093632,0.04468589,3401.7,3401.3,2.94002]
[1721236094033,2.93946,3402.0,3401.3,2.94002]
[1721236094237,0.04455686,3401.6,3401.2,1.160228]
[1721236094462,2.93946,3402.0,3401.2,1.160228]
[1721236094635,0.04454528,3401.5,3401.1,2.3307]
[1721236094834,0.60686063,3402.2,3400.3,5.9409]
[1721236094835,0.60686063,3402.2,3400.6,2.4896]
[1721236095039,2.93995,3401.5,3400.6,2.4896]
[1721236095345,2.94008,3401.3,3400.6,2.4896]
[1721236095724,2.94008,3401.3,3400.3,2.94087]
[1721236095725,2.94022,3401.1,3400.3,2.94086]
[1721236095954,2.94022,3401.1,3400.3,5.85822562]
[1721236096335,2.94022,3401.1,3400.3,2.91736562]
[1721236096726,0.04455684,3401.0,3400.3,2.91736562]
[1721236096926,2.94041,3400.9,3400.1,2.4359]
[1721236097424,0.04443209,3400.8,3400.1,2.4359]
[1721236097623,0.04443209,3400.8,3400.0,21.92041]
[1721236097624,2.94061,3400.7,3400.0,21.92041]
[1721236098162,3.08656063,3401.2,3400.0,21.92041]
[1721236098163,2.98499861,3400.6,3400.0,21.92041]
[1721236099055,0.04434861,3400.6,3400.0,21.92041]
[1721236099365,2.94024,3401.1,3400.1,5.427252]
[1721236099366,2.94041,3400.9,3400.1,5.427252]
[1721236099530,2.94011,3401.3,3400.3,2.94087]
[1721236099861,2.98460988,3401.2,3400.3,2.94087]
[1721236100444,2.94032,3401.0,3400.1,5.427252]
[1721236100945,0.04423128,3400.9,3400.2,2.94099]
[1721236101145,0.04423128,3400.9,3400.3,1.06173029]
[1721236101963,2.94032,3401.0,3400.3,1.06173029]
[1721236102327,2.98463901,3400.9,3400.3,1.06173029]
[1721236102567,0.04424901,3400.9,3400.3,1.06173029]
[1721236102727,0.04424901,3400.9,3400.4,0.64888923]
[1721236102927,2.94031,3401.0,3400.4,0.64888923]
[1721236103254,0.04424901,3400.9,3400.4,0.64888923]
[1721236103652,2.94023,3401.1,3400.4,0.64888923]
[1721236104090,0.04432701,3401.0,3400.4,0.64888923]
[1721236104232,0.04432701,3401.0,3400.5,0.75925195]
[1721236104432,0.04432701,3401.0,3400.5,3.10635195]
[1721236104870,2.94019,3401.2,3400.5,3.10635195]
[1721236105056,0.04430947,3400.9,3400.5,2.3471]
[1721236105230,2.94019,3401.2,3400.5,2.3471]
[1721236105741,0.04401404,3401.1,3400.5,2.3471]
[1721236105945,0.04401404,3401.1,3400.5,2.40590873]
[1721236106167,0.04401404,3401.1,3400.6,0.53466887]
[1721236106364,0.04401404,3401.1,3400.5,2.3471]
[1721236106672,0.04401404,3401.1,3400.5,5.28783]
[1721236106877,0.04401404,3401.1,3400.5,2.3471]
[1721236107038,2.93994,3401.5,3400.6,2.94065]
[1721236107387,0.04408107,3401.4,3400.6,2.94065]
[1721236107547,0.04408107,3401.4,3400.7,0.822853]
[1721236108256,2.94005,3401.3,3400.5,2.3471]
[1721236108447,2.94005,3401.3,3400.3,2.94091]
[1721236108765,2.94026,3401.1,3400.3,2.94091]
[1721236108969,2.94026,3401.1,3400.4,2.94082]
[1721236109171,0.04403049,3401.0,3400.4,2.94082]
[1721236109417,0.04403049,3401.0,3400.4,3.528993]
[1721236109537,0.04403049,3401.0,3400.6,2.94062]
[1721236109856,2.94001,3401.4,3400.6,2.94062]
[1721236110062,5.88005,3401.4,3400.6,2.94062]
[1721236110237,2.94001,3401.4,3400.6,2.94062]
[1721236110436,0.04407384,3401.3,3400.7,0.588128]
[1721236110837,2.93983,3401.6,3400.7,0.588128]
[1721236111052,2.94004,3401.4,3400.7,0.588128]
[1721236111240,5.88008,3401.4,3400.7,0.588128]
[1721236111585,2.94002,3401.4,3400.7,0.588128]
[1721236111740,2.93981,3401.6,3400.8,6.1819508]
[1721236112087,0.04409963,3401.5,3400.8,6.1819508]
[1721236113259,0.04409963,3401.5,3400.9,2.94037]
[1721236113444,0.04409963,3401.5,3400.9,2.94034]
[1721236113881,2.93948,3402.0,3401.2,2.94013]
[1721236114038,2.9393,3402.2,3401.2,2.94013]
[1721236114039,0.04445855,3401.4,3401.3,2.94005]
[1721236114232,2.9393,3402.2,3401.2,3.23996303]
[1721236114233,2.93942,3402.1,3401.2,3.23996303]
[1721236114508,2.93942,3402.1,3401.3,2.94002]
[1721236114669,2.98399718,3402.0,3401.2,0.29989303]
[1721236114868,2.98399718,3402.0,3401.3,2.94]
[1721236115101,2.98399718,3402.0,3401.3,3.8970983]
[1721236115576,2.98399718,3402.0,3401.3,0.9570983]
[1721236116594,2.98399718,3402.0,3401.2,3.24002303]
[1721236116595,2.93962,3401.8,3401.2,0.29989303]
[1721236116886,0.04464973,3401.9,3401.2,3.23997303]
[1721236117056,0.04464257,3401.7,3401.2,3.23997303]
[1721236117261,0.0446601,3401.8,3401.2,3.23997303]
[1721236117592,0.04464257,3401.7,3401.4,2.93996]
[1721236117777,2.93914,3402.4,3401.5,0.6179963]
[1721236117975,0.04459727,3401.6,3401.5,0.6179963]
[1721236118284,2.93932,3402.2,3401.5,0.6179963]
[1721236118497,2.93937,3402.1,3401.5,0.6179963]
[1721236118667,2.98407351,3402.1,3401.5,0.6179963]
[1721236119277,0.04470351,3402.1,3401.5,0.6179963]
[1721236119487,0.04470351,3402.1,3401.6,0.35579563]
[1721236119669,2.93928,3402.2,3401.6,0.35579563]
[1721236119872,2.93964,3401.8,3400.8,2.2555]
[1721236120073,2.94004,3401.4,3400.8,2.2555]
[1721236120363,2.94004,3401.4,3400.5,2.94074]
[1721236120364,2.94014,3401.2,3400.5,2.94074]
[1721236120771,0.04463207,3401.1,3400.5,2.94074]
[1721236120952,0.04463207,3401.1,3400.6,2.9406]
[1721236121152,2.94004,3401.4,3400.0,21.47056]
[1721236121153,2.94043,3400.9,3400.0,20.89481]
[1721236121356,0.04455154,3400.8,3400.0,18.52941]
[1721236121592,2.94023,3401.1,3400.0,18.52941]
[1721236121794,2.94055,3400.8,3400.0,18.52941]
[1721236122191,0.04292355,3400.7,3400.0,18.52941]
[1721236122372,0.04292355,3400.7,3400.1,2.401365]
[1721236122570,0.04292355,3400.7,3400.0,18.52941]
[1721236122858,2.94097,3400.3,3400.0,18.52941]
[1721236123056,2.94107,3400.2,3400.0,18.52941]
[1721236123297,2.94108,3400.1,3400.0,18.52941]
[1721236123679,2.98248336,3400.1,3400.0,18.52941]
[1721236124195,6.84404958,3400.1,3400.0,18.52941]
[1721236124398,7.30599506,3400.1,3400.0,18.52941]
[1721236124612,6.84012451,3400.1,3400.0,18.52941]
[1721236125122,7.39012451,3400.1,3400.0,18.52941]
[1721236125317,9.57980569,3400.1,3400.0,18.52941]
[1721236125796,10.33047578,3400.1,3400.0,18.52941]
[1721236126310,16.23706953,3400.1,3400.0,16.34679699]
[1721236126783,9.83860051,3400.1,3400.0,16.34679699]
[1721236126971,0.65151123,3400.1,3400.0,16.34679699]
[1721236127176,0.04140336,3400.1,3400.0,16.34679699]
[1721236127678,2.98248336,3400.1,3400.0,16.34679699]
[1721236128235,5.92356336,3400.1,3400.0,16.34679699]
[1721236128398,6.47356336,3400.1,3400.0,16.34679699]
[1721236128797,9.47356336,3400.1,3400.0,16.34679699]
[1721236129015,14.85484336,3400.1,3400.0,11.34689699]
[1721236129171,14.95715485,3400.1,3400.0,1.34709699]
[1721236129374,2.94198,3399.1,3398.4,0.1480477]
[1721236129801,0.04068909,3399.0,3398.4,0.1480477]
[1721236130025,2.98274909,3399.0,3398.4,0.1480477]
[1721236131540,0.04068909,3399.0,3398.4,0.1480477]
[1721236131914,2.94203,3399.1,3398.4,0.1480477]
[1721236132130,0.04061432,3398.9,3398.4,0.1480477]
[1721236132647,0.04059676,3398.8,3398.4,0.1480477]
[1721236132852,2.94191,3399.2,3398.4,0.1480477]
[1721236133058,0.04057919,3398.7,3398.4,0.1480477]
[1721236133259,3.55084995,3399.8,3398.4,3.57000025]
[1721236133471,2.94153,3399.6,3398.6,2.94232]
[1721236134020,2.94164,3399.5,3398.6,2.94232]
[1721236134251,2.94164,3399.5,3398.4,3.57000025]
[1721236134416,2.94164,3399.5,3398.4,3.0905977]
[1721236134629,2.94164,3399.5,3398.5,2.94245]
[1721236134829,2.94202,3399.1,3398.4,0.1480477]
[1721236135051,2.94187,3399.2,3398.4,3.0905977]
[1721236135474,2.94197,3399.1,3398.4,0.1480477]
[1721236135646,2.94182,3399.3,3398.4,3.0906077]
[1721236135848,2.94182,3399.3,3398.4,3.69394747]
[1721236136042,2.94195,3399.1,3398.4,3.69394747]
[1721236136260,2.94195,3399.1,3398.4,3.0906077]
[1721236136432,2.94208,3399.0,3398.4,0.1480477]
[1721236136639,5.88494,3398.5,3398.4,0.1480477]
[1721236136941,6.43494,3398.5,3398.4,0.1480477]
[1721236137145,9.43494,3398.5,3398.4,0.1480477]
[1721236137373,12.98685995,3398.5,3398.4,0.13324294]
[1721236137535,12.37741,3398.5,3398.4,0.13324294]
[1721236138974,9.43494,3398.5,3398.4,0.13324294]
[1721236141460,12.37741,3398.5,3398.4,0.13324294]
[1721236141897,6.49247,3398.5,3398.4,0.13324294]
[1721236142051,0.59024386,3398.5,3398.4,0.13324294]
[1721236142253,0.04024386,3398.5,3398.4,0.13324294]
[1721236142490,5.94221,3398.8,3398.4,0.13324294]
[1721236142688,0.03869512,3398.5,3398.4,0.13324294]
[1721236142891,2.94188,3399.2,3398.4,0.13324294]
[1721236143200,2.9421,3399.0,3398.4,0.13324294]
[1721236143359,2.94195,3399.1,3398.4,0.13324294]
[1721236143556,0.03880053,3399.1,3398.4,0.13324294]
[1721236143770,0.91417493,3399.9,3398.4,0.13324294]
[1721236143771,2.9417,3399.4,3398.5,2.2737]
[1721236144093,0.03897083,3399.3,3398.5,5.21616]
[1721236144290,0.03897083,3399.3,3398.7,2.94229]
[1721236144479,2.94149,3399.7,3398.7,2.94229]
[1721236144706,0.03858297,3399.2,3398.8,2.94219]
[1721236144916,2.94149,3399.7,3398.8,2.94219]
[1721236145113,2.94157,3399.6,3398.8,2.94219]
[1721236145303,0.03799563,3399.6,3398.8,2.94219]
[1721236145691,2.94158,3399.6,3398.8,2.94219]
[1721236145885,0.03668616,3399.5,3398.8,2.94219]
[1721236146090,0.03668616,3399.5,3398.9,2.94206]
[1721236146534,2.94142,3399.8,3399.0,2.94202]
[1721236146990,0.03643474,3399.7,3399.0,2.94202]
[1721236148634,5.94128,3399.9,3399.0,2.94202]
[1721236148788,0.03672829,3399.6,3399.0,2.94202]
[1721236148993,5.94128,3399.9,3399.0,2.94202]
[1721236149221,2.9781134,3399.8,3399.0,2.94202]
[1721236149424,2.9781134,3399.8,3398.9,2.94212]
[1721236149626,2.94144,3399.7,3398.9,2.94212]
[1721236149827,2.97818584,3399.7,3398.9,2.94212]
[1721236149992,0.03674584,3399.7,3398.9,2.94212]
[1721236150188,5.94128,3399.9,3399.1,2.94193]
[1721236150189,3.0,3399.9,3399.1,2.94193]
[1721236150423,0.0367634,3399.8,3399.1,2.94193]
[1721236150627,0.0367634,3399.8,3398.9,3.530501]
[1721236150866,0.0367634,3399.8,3398.9,2.94206]
[1721236151034,2.94145,3399.7,3398.9,2.94206]
[1721236151189,2.94145,3399.7,3398.8,2.94214]
[1721236151190,2.97817724,3399.7,3398.8,2.94214]
[1721236151937,2.94062,3400.7,3398.5,2.2737]
[1721236151938,0.03548544,3399.6,3399.5,5.8832]
[1721236152163,0.03548544,3399.6,3399.3,2.4969]
[1721236153643,0.03480332,3399.7,3399.6,2.94151]
[1721236153827,2.94057,3400.7,3399.6,2.94151]
[1721236153828,2.94083,3400.4,3399.6,2.94151]
[1721236154025,0.03462799,3399.7,3399.4,2.94162]
[1721236154221,2.94083,3400.4,3399.6,2.94149]
[1721236156057,2.94077,3400.5,3399.6,2.94149]
[1721236157052,2.94077,3400.5,3399.7,2.94143]
[1721236157579,3.0,3401.0,3399.2,6.33286]
[1721236157580,2.94085,3400.4,3399.2,6.33286]
[1721236157740,2.94107,3400.2,3399.2,2.94179]
[1721236157940,2.94109,3400.1,3399.3,2.94174]
[1721236158144,2.94107,3400.2,3399.3,2.94174]
[1721236158661,2.94111,3400.1,3399.3,2.94174]
[1721236158850,2.94111,3400.1,3399.4,2.94169]
[1721236159166,2.94068,3400.6,3399.6,2.9415]
[1721236159464,3.55,3400.5,3399.7,2.4595]
[1721236159659,3.58485177,3400.5,3399.7,2.4595]
[1721236160327,2.94105,3400.2,3399.1,5.8708]
[1721236160524,2.94105,3400.2,3399.3,2.94171]
[1721236160755,0.03478693,3400.1,3399.3,2.94171]
[1721236161620,0.03478693,3400.1,3399.4,2.94168]
[1721236162045,2.97588693,3400.1,3399.2,2.94182]
[1721236162427,2.97588693,3400.1,3399.3,2.94171]
[1721236163068,0.03478693,3400.1,3399.4,2.94166]
[1721236163674,0.03478693,3400.1,3399.1,2.4798]
[1721236163827,0.03478693,3400.1,3399.3,2.94171]
[1721236164035,0.03478693,3400.1,3399.1,5.42174]
[1721236164036,0.58478693,3400.1,3399.1,2.4798]
[1721236164336,2.94135,3399.8,3399.1,2.4798]
[1721236164651,0.03479366,3399.7,3399.1,2.4798]
[1721236164965,2.94159,3399.6,3398.6,5.31474]
[1721236165127,2.94162,3399.5,3398.6,5.31478]
[1721236165468,2.97601142,3399.5,3398.7,2.94227]
[1721236165869,2.9417,3399.4,3398.7,2.94227]
[1721236166027,2.9760459,3399.4,3398.6,2.3724]
[1721236166223,2.9760459,3399.4,3398.6,5.31476]
[1721236166465,2.9760459,3399.4,3398.6,2.3724]
[1721236166826,2.9760459,3399.4,3398.7,2.94225]
[1721236167030,0.0343459,3399.4,3398.9,2.94212]
[1721236167342,2.94138,3399.8,3398.7,2.94225]
[1721236167343,2.94154,3399.6,3398.7,2.94225]
[1721236167549,0.03432833,3399.3,3398.6,2.3724]
[1721236167740,2.94173,3399.4,3398.6,2.3724]
[1721236167936,0.03431076,3399.2,3398.6,5.31478]
[1721236168138,0.03432833,3399.3,3398.6,5.31478]
[1721236168345,0.03429319,3399.1,3398.6,5.31478]
[1721236168545,0.03460336,3399.2,3398.6,5.31478]
[1721236168730,0.03456823,3399.0,3398.6,5.31478]
[1721236168956,0.03452277,3399.1,3398.6,5.31478]
[1721236169155,0.03445974,3398.9,3398.6,5.31478]
[1721236169467,0.03453533,3398.8,3398.6,5.31478]
[1721236169696,2.94173,3399.4,3398.6,5.31478]
[1721236169871,0.03451777,3398.7,3398.6,5.31478]
[1721236170189,5.8835,3399.4,3398.4,3.07579294]
[1721236170396,2.94203,3399.1,3398.4,0.13324294]
[1721236170605,0.03448983,3398.7,3398.4,0.13324294]
[1721236170770,2.94247,3398.5,3398.4,0.13324294]
[1721236171398,5.9192845,3398.5,3398.4,0.13324294]
[1721236171556,6.52787175,3398.5,3398.4,0.13324294]
[1721236171919,5.9192845,3398.5,3398.4,0.13324294]
[1721236172052,6.5287821,3398.5,3398.4,0.13324294]
[1721236172252,10.0212521,3398.5,3398.4,0.13324294]
[1721236172588,13.73129577,3398.5,3398.4,0.13324294]
[1721236172891,12.66245761,3398.5,3398.4,0.13324294]
[1721236173423,14.18521231,3398.5,3398.4,0.13324294]
[1721236173603,14.18478287,3398.5,3398.4,0.13324294]
[1721236173896,12.51409926,3398.5,3398.4,0.13324294]
[1721236174203,13.73200038,3398.5,3398.4,0.13324294]
[1721236174558,13.69732786,3398.5,3398.4,0.13324294]
[1721236174755,13.73153733,3398.5,3398.4,0.13324294]
[1721236175501,13.73153733,3398.5,3397.4,5.0]
[1721236175502,5.88668,3397.5,3397.4,5.0]
[1721236175884,5.92056683,3397.5,3397.4,5.0]
[1721236176299,6.47056683,3397.5,3397.4,5.0]
[1721236177504,9.41390683,3397.5,3397.4,5.0]
[1721236177882,10.02261476,3397.5,3397.4,5.0]
[1721236178094,9.41390683,3397.5,3397.4,5.0]
[1721236178593,10.32696873,3397.5,3397.4,5.0]
[1721236178797,9.41390683,3397.5,3397.4,5.0]
[1721236179107,10.02188283,3397.5,3397.4,5.0]
[1721236179272,6.47056683,3397.5,3397.4,5.0]
[1721236180704,9.41390683,3397.5,3397.4,5.0]
[1721236182828,13.02188283,3397.5,3397.4,5.0]
[1721236183177,12.41390683,3397.5,3397.4,5.0]
[1721236184577,18.28472283,3397.5,3397.4,5.0]
[1721236184783,17.67674683,3397.5,3397.4,5.0]
[1721236185298,18.2836204,3397.5,3397.4,5.0]
[1721236185515,13.0207804,3397.5,3397.4,4.50000001]
[1721236185690,9.47056683,3397.5,3397.4,4.50000001]
[1721236186015,8.92056683,3397.5,3397.4,4.50000001]
[1721236186222,8.92056683,3397.5,3397.4,1.93302174]
[1721236186223,17.22354683,3397.5,3397.4,1.93302174]
[1721236186433,19.77354683,3397.5,3397.4,1.74e-06]
[1721236186724,19.77354683,3397.5,3395.5,5.37854]
[1721236186725,2.94446,3396.2,3395.5,2.4335]
[1721236187089,0.03243697,3396.1,3395.5,2.4335]
[1721236187821,2.94479,3395.9,3395.5,2.4335]
[1721236188328,2.97719051,3395.8,3395.1,2.463]
[1721236188746,2.94509,3395.5,3395.1,2.463]
[1721236188908,0.03236051,3395.8,3395.1,2.463]
[1721236189245,2.94484,3395.8,3395.1,2.463]
[1721236189421,2.97725297,3395.7,3395.1,2.463]
[1721236190116,2.94524,3395.4,3395.1,2.463]
[1721236190326,2.94525,3395.3,3395.1,2.463]
[1721236190518,2.97748257,3395.3,3395.1,2.463]
[1721236190729,2.97748257,3395.3,3395.0,0.1480477]
[1721236190899,2.9454,3395.2,3395.0,0.1480477]
[1721236191100,2.9775334,3395.2,3395.0,0.1480477]
[1721236191296,6.44084,3395.1,3395.0,0.1480477]
[1721236191496,0.03211579,3395.1,3395.0,0.1480477]
[1721236192118,2.97753579,3395.1,3395.0,0.1480477]
[1721236192324,5.92295579,3395.1,3395.0,0.1480477]
[1721236192532,6.47295579,3395.1,3395.0,0.1480477]
[1721236194442,2.97753579,3395.1,3395.0,0.1480477]
[1721236194836,0.03211579,3395.1,3395.0,0.1480477]
[1721236195041,2.94526,3395.3,3395.0,0.1480477]
[1721236195236,0.0319084,3395.2,3395.0,0.1480477]
[1721236195447,2.94526,3395.3,3395.0,0.1480477]
[1721236195771,0.03189079,3395.1,3395.0,0.1480477]
[1721236195937,2.94526,3395.3,3395.0,0.1480477]
[1721236196131,0.03189079,3395.1,3395.0,0.1480477]
[1721236196339,2.94526,3395.3,3395.0,0.1480477]
[1721236196549,0.03189079,3395.1,3395.0,0.1480477]
[1721236196748,2.94526,3395.3,3395.0,0.1480477]
[1721236196945,0.03176048,3395.1,3395.0,0.1480477]
[1721236197150,2.94526,3395.3,3395.0,0.1480477]
[1721236197346,0.03176048,3395.1,3395.0,0.1480477]
[1721236197564,3.46184675,3396.0,3395.0,0.1480477]
[1721236197873,2.94479,3395.9,3395.1,2.4782]
[1721236198074,2.94498,3395.7,3395.1,2.4782]
[1721236198372,2.94424,3396.5,3395.0,0.1480477]
[1721236198373,2.94537,3395.2,3395.0,0.1480477]
[1721236199053,2.94542,3395.1,3395.0,0.1480477]
[1721236199562,5.89084,3395.1,3395.0,0.1480477]
[1721236199763,8.83626,3395.1,3395.0,0.1480477]
[1721236199983,9.38626,3395.1,3395.0,0.1480477]
[1721236200178,12.38626,3395.1,3395.0,0.1480477]
[1721236202070,12.4167308,3395.1,3395.0,0.1480477]
[1721236203764,15.3621508,3395.1,3395.0,0.1480477]
[1721236204473,12.4167308,3395.1,3395.0,0.1480477]
[1721236205777,15.3621508,3395.1,3395.0,0.1480477]
[1721236206568,12.4167308,3395.1,3395.0,0.1480477]
[1721236207100,8.9213108,3395.1,3395.0,0.1480477]
[1721236208984,5.9758908,3395.1,3395.0,0.1480477]
[1721236209209,8.9213108,3395.1,3395.0,0.1480477]
[1721236209971,11.8667308,3395.1,3395.0,0.1480477]
[1721236210200,12.4167308,3395.1,3395.0,0.1480477]
[1721236210416,15.3621508,3395.1,3395.0,0.1480477]
[1721236210779,15.3621508,3395.1,3393.5,2.4716]
[1721236210780,2.94672,3393.6,3393.5,2.4716]
[1721236211076,5.92363201,3393.6,3393.5,2.4716]
[1721236211273,2.97691201,3393.6,3393.5,2.4716]
[1721236211516,0.03019201,3393.6,3393.5,2.4716]
[1721236211692,2.94657,3393.8,3393.5,2.4716]
[1721236211987,0.03019201,3393.6,3393.5,2.4716]
[1721236212227,2.94646,3393.9,3393.5,2.4716]
[1721236212387,0.03019201,3393.6,3393.5,2.4716]
[1721236212886,2.94657,3393.8,3393.5,2.4716]
[1721236213086,0.03019201,3393.6,3393.5,2.4716]
[1721236213302,2.9464,3394.0,3393.5,2.4716]
[1721236213466,10.31595,3394.5,3393.5,2.4716]
[1721236213467,0.03019201,3393.6,3393.5,2.4716]
[1721236213671,2.94605,3394.4,3393.5,5.0256]
[1721236213914,0.02917146,3393.6,3393.5,5.0256]
[1721236214116,2.94581,3394.7,3393.8,2.9465]
[1721236214276,2.94581,3394.7,3393.9,2.96611]
[1721236214820,2.9453,3395.3,3393.9,2.96611]
[1721236215050,2.94568,3394.8,3393.9,2.96611]
[1721236215200,2.94568,3394.8,3393.9,2.4286]
[1721236215201,2.94594,3394.5,3393.9,2.4286]
[1721236215727,2.94563,3394.9,3394.0,2.94637]
[1721236215939,2.94563,3394.9,3394.1,2.4908]
[1721236216141,2.94576,3394.7,3394.1,2.4908]
[1721236216323,2.94563,3394.9,3394.1,2.4908]
[1721236216527,7.37,3395.4,3394.1,5.980797]
[1721236216707,2.94542,3395.1,3394.1,5.980797]
[1721236216906,2.9454,3395.2,3394.2,2.2851]